fUSD/lending_fUSD_20241121
["ID","MTS","AMOUNT","RATE_DAILY","PERIOD"]
[342885499,1732193466544,-500.0,0.00041643,18]
[342885500,1732193466555,-500.0,0.00041643,18]
[342885501,1732193466565,-554.92,0.00041643,18]
[342885502,1732193466575,-500.0,0.00041643,18]
[342885503,1732193466585,-522.43,0.00041643,18]
[342885504,1732193466595,-500.0,0.00041643,18]
[342885505,1732193466605,-1500.29,0.00041643,18]
[342885506,1732193466616,-150.0,0.00041643,18]
[342885507,1732193466627,-500.0,0.00041643,18]
[342885508,1732193466637,-500.0,0.00041643,18]
[342885509,1732193466647,-853.38,0.00041643,18]
[342885510,1732193466657,-500.0,0.00041643,18]
[342885511,1732193466667,-500.0,0.00041643,18]
[342885512,1732193466677,-500.0,0.00041643,18]
[342885513,1732193466687,-1707.73,0.00041643,18]
[342885514,1732193466697,-500.0,0.00041643,18]
[342885515,1732193466707,-851.64,0.00041643,18]
[342885516,1732193466718,-1631.71,0.00041643,18]
[342885517,1732193466728,-500.0,0.00041643,18]
[342885518,1732193466739,-500.0,0.00041643,18]
[342885519,1732193466750,-2045.78,0.00041643,18]
[342885520,1732193466759,-604.88,0.00041643,18]
[342885521,1732193466770,-524.06,0.00041643,18]
[342885522,1732193466781,-609.81,0.00041643,18]
[342885523,1732193466791,-500.0,0.00041643,18]
[342885524,1732193466801,-1217.63,0.00041643,18]
[342885525,1732193466811,-625.79,0.00041643,18]
[342885526,1732193466822,-503.49,0.00041643,18]
[342885527,1732193466832,-500.0,0.00041643,18]
[342885528,1732193466842,-1276.71,0.00041643,18]
[342885529,1732193466852,-2179.03,0.00041643,18]
[342885530,1732193466862,-500.0,0.00041643,18]
[342885531,1732193466872,-1069.27,0.00041643,18]
[342885532,1732193466887,-500.0,0.00041643,18]
[342885533,1732193466898,-577.76936565,0.00041643,18]
[342885534,1732193466908,-500.0,0.00041643,18]
[342885535,1732193466918,-982.72,0.00041643,18]
[342885536,1732193466927,-592.04,0.00041643,18]
[342885537,1732193466937,-565.83,0.00041643,18]
[342885538,1732193466947,-500.0,0.00041643,18]
[342885539,1732193466956,-500.0,0.00041643,18]
[342885540,1732193466966,-500.0,0.00041643,18]
[342885541,1732193466976,-500.0,0.00041643,18]
[342885542,1732193466986,-1145.38,0.00041643,18]
[342885543,1732193466996,-500.0,0.00041643,18]
[342885544,1732193467006,-683.41,0.00041643,18]
[342885545,1732193467016,-500.0,0.00041643,18]
[342885546,1732193467026,-809.06,0.00041643,18]
[342885547,1732193467036,-500.0,0.00041643,18]
[342885548,1732193467049,-522.10307584,0.00041643,18]
[342885549,1732193467060,-500.0,0.00041643,18]
[342885550,1732193467070,-500.0,0.00041643,18]
[342885551,1732193467080,-871.48,0.00041643,18]
[342885552,1732193467091,-500.0,0.00041643,18]
[342885553,1732193467101,-500.0,0.00041643,18]
[342885554,1732193467111,-1807.73,0.00041643,18]
[342885555,1732193467123,-500.0,0.00041643,18]
[342885556,1732193467137,-225.33600012,0.00041643,18]
[342885557,1732193467147,-500.0,0.00041643,18]
[342885558,1732193467158,-3487.06,0.00041643,18]
[342885559,1732193467169,-484.69781079,0.00041643,18]
[342885560,1732193467179,-626.13,0.00041643,18]
[342885561,1732193467190,-500.0,0.00041643,18]
[342885562,1732193467203,-910.29,0.00041643,18]
[342885563,1732193467213,-500.0,0.00041643,18]
[342885564,1732193467223,-625.75,0.00041643,18]
[342885565,1732193467233,-500.0,0.00041643,18]
[342885566,1732193467244,-1035.2,0.00041643,18]
[342885567,1732193467260,-647.8,0.00041643,18]
[342885568,1732193467270,-500.0,0.00041643,18]
[342885569,1732193467280,-500.0,0.00041643,18]
[342885570,1732193467291,-151.0,0.00041643,14]
[342885571,1732193467301,-500.0,0.00041643,18]
[342885572,1732193467310,-500.0,0.00041643,18]
[342885573,1732193467320,-500.0,0.00041643,18]
[342885574,1732193467331,-500.0,0.00041643,18]
[342885575,1732193467341,-151.0,0.00041643,14]
[342885576,1732193467352,-796.66,0.00041643,18]
[342885577,1732193467362,-672.69,0.00041643,18]
[342885578,1732193467372,-510.2139089,0.00041643,18]
[342885579,1732193467384,-503.85936447,0.00041643,18]
[342885580,1732193467394,-662.24,0.00041643,18]
[342885581,1732193467403,-151.0,0.00041643,14]
[342885582,1732193467413,-749.93,0.00041643,18]
[342885583,1732193467423,-151.0,0.00041643,14]
[342885584,1732193467433,-500.0,0.00041643,18]
[342885585,1732193467443,-796.31,0.00041643,18]
[342885586,1732193467453,-982.89,0.00041643,18]
[342885587,1732193467463,-500.0,0.00041643,18]
[342885588,1732193467473,-331.97730648,0.00041643,18]
[342885589,1732193467482,-928.18,0.00041643,18]
[342885590,1732193467492,-716.66,0.00041643,18]
[342885591,1732193467502,-500.0,0.00041643,18]
[342885592,1732193467511,-500.0,0.00041643,18]
[342885593,1732193467521,-500.0,0.00041643,18]
[342885594,1732193467531,-500.0,0.00041643,18]
[342885595,1732193467541,-1599.91,0.00041643,18]
[342885596,1732193467551,-513.36,0.00041643,18]
[342885597,1732193467561,-500.0,0.00041643,18]
[342885598,1732193467571,-525.37,0.00041643,18]
[342885599,1732193467581,-1042.34,0.00041643,18]
[342885600,1732193467591,-556.05,0.00041643,18]
[342885601,1732193467601,-500.0,0.00041643,18]
[342885602,1732193467611,-500.0,0.00041643,18]
[342885603,1732193467621,-500.0,0.00041643,18]
[342885604,1732193467634,-751.29,0.00041643,120]
[342885605,1732193467644,-500.0,0.00041643,18]
[342885606,1732193467654,-500.0,0.00041643,18]
[342885607,1732193467664,-500.0,0.00041643,18]
[342885608,1732193467674,-889.44,0.00041643,18]
[342885609,1732193467684,-500.0,0.00041643,18]
[342885610,1732193467694,-1153.16,0.00041643,18]
[342885611,1732193467704,-500.0,0.00041643,18]
[342885612,1732193467714,-500.0,0.00041643,18]
[342885613,1732193467723,-500.0,0.00041643,18]
[342885614,1732193467733,-500.0,0.00041643,18]
[342885615,1732193467742,-690.57,0.00041643,18]
[342885616,1732193467752,-500.0,0.00041643,18]
[342885617,1732193467762,-500.0,0.00041643,18]
[342885618,1732193467771,-500.0,0.00041643,18]
[342885619,1732193467782,-500.0,0.00041643,18]
[342885620,1732193467792,-752.18,0.00041643,18]
[342885621,1732193467802,-500.0,0.00041643,18]
[342885622,1732193467811,-500.0,0.00041643,18]
[342885623,1732193467821,-1355.88,0.00041643,18]
[342885624,1732193467831,-500.0,0.00041643,18]
[342885625,1732193467841,-500.0,0.00041643,18]
[342885626,1732193467851,-1305.13,0.00041643,18]
[342885627,1732193467861,-890.02,0.00041643,7]
[342885628,1732193467871,-500.0,0.00041643,18]
[342885629,1732193467884,-2684.63,0.00041643,18]
[342885630,1732193467894,-500.0,0.00041643,18]
[342885631,1732193467904,-500.0,0.00041643,18]
[342885632,1732193467914,-584.90989173,0.00041643,18]
[342885633,1732193467924,-781.53,0.00041643,18]
[342885634,1732193467935,-500.0,0.00041643,18]
[342885635,1732193467946,-551.41,0.00041643,18]
[342885636,1732193467956,-500.0,0.00041643,18]
[342885637,1732193467966,-585.82,0.00041643,18]
[342885638,1732193467976,-1121.83,0.00041643,18]
[342885639,1732193467986,-536.18,0.00041643,18]
[342885640,1732193467996,-500.0,0.00041643,18]
[342885641,1732193468006,-861.58,0.00041643,18]
[342885642,1732193468016,-2079.25,0.00041643,18]
[342885643,1732193468026,-500.0,0.00041643,18]
[342885644,1732193468037,-500.0,0.00041643,18]
[342885645,1732193468049,-151.0,0.00041643,14]
[342885646,1732193468060,-151.0,0.00041643,14]
[342885647,1732193468070,-500.0,0.00041643,18]
[342885648,1732193468080,-500.0,0.00041643,18]
[342885649,1732193468091,-500.0,0.00041643,18]
[342885650,1732193468101,-500.0,0.00041643,18]
[342885651,1732193468111,-500.0,0.00041643,18]
[342885652,1732193468122,-583.87,0.00041643,18]
[342885653,1732193468136,-500.0,0.00041643,18]
[342885654,1732193468471,-864.0,0.00041643,18]
[342885655,1732193468491,-500.0,0.00041643,18]
[342885656,1732193468501,-151.0,0.00041643,14]
[342885657,1732193468511,-500.0,0.00041643,18]
[342885658,1732193468521,-811.04,0.00041643,18]
[342885659,1732193468530,-500.0,0.00041643,18]
[342885660,1732193468540,-985.19,0.00041643,18]
[342885661,1732193468550,-500.0,0.00041643,18]
[342885662,1732193468559,-500.0,0.00041643,18]
[342885663,1732193468569,-151.0,0.00041643,14]
[342885664,1732193468579,-500.0,0.00041643,18]
[342885665,1732193468589,-500.0,0.00041643,18]
[342885666,1732193468599,-500.0,0.00041643,18]
[342885667,1732193468608,-500.0,0.00041643,18]
[342885668,1732193468618,-500.0,0.00041643,18]
[342885669,1732193468636,-661.33,0.00041643,18]
[342885670,1732193468647,-500.0,0.00041643,18]
[342885671,1732193468657,-780.38,0.00041643,18]
[342885672,1732193468667,-511.95226632,0.00041643,18]
[342885673,1732193468676,-587.0,0.00041643,18]
[342885674,1732193468686,-500.0,0.00041643,18]
[342885675,1732193468695,-1744.06,0.00041643,18]
[342885676,1732193468705,-1000.0,0.00041643,5]
[342885677,1732193468715,-500.0,0.00041643,18]
[342885678,1732193468725,-500.0,0.00041643,18]
[342885679,1732193468735,-639.27,0.00041643,18]
[342885680,1732193468745,-500.0,0.00041643,18]
[342885681,1732193468755,-500.0,0.00041643,18]
[342885682,1732193468765,-822.09,0.00041643,18]
[342885683,1732193468775,-1554.77,0.00041643,18]
[342885684,1732193468784,-500.0,0.00041643,18]
[342885685,1732193468795,-500.0,0.00041643,18]
[342885686,1732193468804,-687.6,0.00041643,18]
[342885687,1732193468813,-500.0,0.00041643,18]
[342885688,1732193468822,-672.87,0.00041643,18]
[342885689,1732193468832,-656.21,0.00041643,18]
[342885690,1732193468841,-500.0,0.00041643,18]
[342885691,1732193468850,-500.0,0.00041643,18]
[342885692,1732193468860,-500.0,0.00041643,18]
[342885693,1732193468869,-500.0,0.00041643,18]
[342885694,1732193468882,-820.87,0.00041643,18]
[342885695,1732193468891,-500.0,0.00041643,18]
[342885696,1732193468901,-500.0,0.00041643,18]
[342885697,1732193468911,-500.0,0.00041643,18]
[342885698,1732193468921,-2242.03,0.00041643,18]
[342885699,1732193468931,-864.49,0.00041643,18]
[342885700,1732193468941,-500.0,0.00041643,18]
[342885701,1732193468951,-500.0,0.00041643,18]
[342885702,1732193468961,-1710.98,0.00041643,18]
[342885703,1732193468971,-500.0,0.00041643,18]
[342885704,1732193468981,-500.0,0.00041643,18]
[342885705,1732193468991,-2945.64,0.00041643,18]
[342885706,1732193469001,-500.0,0.00041643,18]
[342885707,1732193469011,-500.0,0.00041643,18]
[342885708,1732193469020,-500.0,0.00041643,18]
[342885709,1732193469030,-500.0,0.00041643,18]
[342885710,1732193469040,-500.0,0.00041643,18]
[342885711,1732193469052,-1329.94,0.00041643,18]
[342885712,1732193469061,-500.0,0.00041643,18]
[342885713,1732193469071,-565.97,0.00041643,18]
[342885714,1732193469081,-2673.22,0.00041643,18]
[342885715,1732193469093,-500.0,0.00041643,18]
[342885716,1732193469103,-500.0,0.00041643,18]
[342885717,1732193469113,-500.0,0.00041643,18]
[342885718,1732193469124,-688.51,0.00041643,18]
[342885719,1732193469139,-500.0,0.00041643,18]
[342885720,1732193469149,-1288.56,0.00041643,18]
[342885721,1732193469159,-500.0,0.00041643,18]
[342885722,1732193469168,-537.09,0.00041643,18]
[342885723,1732193469177,-2144.77,0.00041643,18]
[342885724,1732193469188,-500.0,0.00041643,18]
[342885725,1732193469197,-996.01,0.00041643,18]
[342885726,1732193469207,-151.0,0.00041643,14]
[342885727,1732193469217,-626.16,0.00041643,18]
[342885728,1732193469227,-500.0,0.00041643,18]
[342885729,1732193469238,-151.0,0.00041643,14]
[342885730,1732193469247,-276.48614981,0.00041643,18]
[342885731,1732193469258,-558.68,0.00041643,18]
[342885732,1732193469268,-500.0,0.00041643,18]
[342885733,1732193469277,-500.0,0.00041643,18]
[342885734,1732193469287,-940.29,0.00041643,18]
[342885735,1732193469302,-500.0,0.00041643,18]
[342885736,1732193469312,-151.0,0.00041643,14]
[342885737,1732193469321,-152.293454,0.00041643,14]
[342885738,1732193469331,-1122.32,0.00041643,18]
[342885739,1732193469340,-606.44,0.00041643,18]
[342885740,1732193469351,-845.45,0.00041643,18]
[342885741,1732193469361,-500.0,0.00041643,18]
[342885742,1732193469372,-737.88,0.00041643,18]
[342885743,1732193469385,-711.26,0.00041643,18]
[342885744,1732193469395,-500.0,0.00041643,18]
[342885745,1732193469405,-518.26,0.00041643,18]
[342885746,1732193469418,-2681.19,0.00041643,18]
[342885747,1732193469427,-500.0,0.00041643,18]
[342885748,1732193469437,-500.0,0.00041643,18]
[342885749,1732193469447,-500.0,0.00041643,18]
[342885750,1732193469456,-1502.52,0.00041643,18]
[342885751,1732193469465,-952.89,0.00041643,18]
[342885752,1732193469476,-1521.88,0.00041643,18]
[342885753,1732193469485,-572.38720318,0.00041643,18]
[342885754,1732193469495,-821.19,0.00041643,18]
[342885755,1732193469507,-506.5269656,0.00041643,18]
[342885756,1732193469516,-2090.41,0.00041643,18]
[342885757,1732193469526,-1062.64,0.00041643,18]
[342885758,1732193469536,-764.24,0.00041643,18]
[342885759,1732193469546,-1343.71,0.00041643,18]
[342885760,1732193469555,-589.28,0.00041643,18]
[342885761,1732193469566,-500.0,0.00041643,18]
[342885762,1732193469575,-500.0,0.00041643,18]
[342885763,1732193469585,-151.0,0.00041643,14]
[342885764,1732193469595,-500.0,0.00041643,18]
[342885765,1732193469605,-698.8,0.00041643,18]
[342885766,1732193469615,-500.0,0.00041643,18]
[342885767,1732193469625,-500.0,0.00041643,18]
[342885768,1732193469638,-726.8,0.00041643,18]
[342885769,1732193469648,-1664.59,0.00041643,7]
[342885770,1732193469658,-500.0,0.00041643,14]
[342885771,1732193469667,-501.77,0.00041643,18]
[342885772,1732193469677,-500.0,0.00041643,18]
[342885773,1732193469686,-1564.67,0.00041643,18]
[342885774,1732193469696,-1282.42,0.00041643,18]
[342885775,1732193469706,-646.78,0.00041643,18]
[342885776,1732193469715,-500.0,0.00041643,18]
[342885777,1732193469725,-500.0,0.00041643,18]
[342885778,1732193469735,-500.0,0.00041643,18]
[342885779,1732193469746,-500.0,0.00041643,18]
[342885780,1732193469755,-836.41,0.00041643,18]
[342885781,1732193469764,-500.0,0.00041643,18]
[342885782,1732193469774,-1119.3,0.00041643,18]
[342885783,1732193469783,-500.0,0.00041643,18]
[342885784,1732193469792,-1046.11,0.00041643,18]
[342885785,1732193469802,-500.0,0.00041643,18]
[342885786,1732193469812,-156.29068322,0.00041643,2]
[342885787,1732193469821,-500.0,0.00041643,18]
[342885788,1732193469830,-500.0,0.00041643,18]
[342885789,1732193469839,-500.0,0.00041643,18]
[342885790,1732193469849,-500.0,0.00041643,18]
[342885791,1732193469859,-500.0,0.00041643,18]
[342885792,1732193469868,-645.24439479,0.00041643,18]
[342885793,1732193469881,-547.65,0.00041643,18]
[342885794,1732193469890,-500.0,0.00041643,18]
[342885795,1732193469899,-500.0,0.00041643,18]
[342885796,1732193469909,-1651.28,0.00041643,18]
[342885797,1732193469918,-1037.5,0.00041643,18]
[342885798,1732193469928,-500.0,0.00041643,18]
[342885799,1732193469938,-500.0,0.00041643,18]
[342885800,1732193469948,-500.0,0.00041643,18]
[342885801,1732193469958,-500.0,0.00041643,18]
[342885802,1732193469968,-1523.03,0.00041643,18]
[342885803,1732193469977,-500.73,0.00041643,18]
[342885804,1732193469986,-2155.21,0.00041643,18]
[342885805,1732193469996,-500.0,0.00041643,18]
[342885806,1732193470005,-151.0,0.00041643,14]
[342885807,1732193470015,-1553.55,0.00041643,18]
[342885808,1732193470024,-1543.58,0.00041643,18]
[342885809,1732193470033,-587.28,0.00041643,18]
[342885810,1732193470044,-500.0,0.00041643,18]
[342885811,1732193470058,-782.96,0.00041643,18]
[342885812,1732193470068,-151.0,0.00041643,14]
[342885813,1732193470077,-500.0,0.00041643,18]
[342885814,1732193470087,-500.0,0.00041643,18]
[342885815,1732193470096,-1689.71,0.00041643,18]
[342885816,1732193470107,-500.0,0.00041643,18]
[342885817,1732193470116,-507.85,0.00041643,18]
[342885818,1732193470125,-500.0,0.00041643,18]
[342885819,1732193470138,-887.67,0.00041643,18]
[342885820,1732193470148,-761.94,0.00041643,18]
[342885821,1732193470158,-151.0,0.00041643,14]
[342885822,1732193470168,-1661.07,0.00041643,18]
[342885823,1732193470177,-500.0,0.00041643,18]
[342885824,1732193470186,-500.0,0.00041643,18]
[342885825,1732193470196,-973.81,0.00041643,18]
[342885826,1732193470206,-634.93,0.00041643,18]
[342885827,1732193470216,-380.95124056,0.00041643,18]
[342885828,1732193470226,-500.0,0.00041643,18]
[342885829,1732193470236,-634.27,0.00041643,18]
[342885830,1732193470250,-1621.46,0.00041643,18]
[342885831,1732193470260,-500.0,0.00041643,18]
[342885832,1732193470270,-1950.66,0.00041643,18]
[342885833,1732193470280,-2151.89,0.00041643,18]
[342885834,1732193470290,-500.0,0.00041643,18]
[342885835,1732193470300,-500.0,0.00041643,18]
[342885836,1732193470309,-500.0,0.00041643,18]
[342885837,1732193470319,-500.0,0.00041643,18]
[342885838,1732193470329,-151.0,0.00041643,14]
[342885839,1732193470339,-500.0,0.00041643,18]
[342885840,1732193470350,-500.0,0.00041643,18]
[342885841,1732193470360,-1283.69,0.00041643,18]
[342885842,1732193470369,-1800.7,0.00041643,18]
[342885843,1732193470382,-555.01,0.00041643,18]
[342885844,1732193470391,-500.0,0.00041643,18]
[342885845,1732193470400,-966.2,0.00041643,18]
[342885846,1732193470409,-500.0,0.00041643,18]
[342885847,1732193470419,-500.0,0.00041643,18]
[342885848,1732193470428,-866.93,0.00041643,18]
[342885849,1732193470438,-629.53,0.00041643,18]
[342885850,1732193470447,-151.0,0.00041643,14]
[342885851,1732193470457,-500.0,0.00041643,18]
[342885852,1732193470468,-500.0,0.00041643,18]
[342885853,1732193470477,-500.0,0.00041643,18]
[342885854,1732193470486,-545.31865122,0.00041643,18]
[342885855,1732193470496,-500.0,0.00041643,18]
[342885856,1732193470506,-500.0,0.00041643,18]
[342885857,1732193470516,-500.0,0.00041643,18]
[342885858,1732193470526,-500.0,0.00041643,18]
[342885859,1732193470535,-1667.95,0.00041643,18]
[342885860,1732193470545,-684.17,0.00041643,18]
[342885861,1732193470554,-500.0,0.00041643,18]
[342885862,1732193470564,-678.25,0.00041643,18]
[342885863,1732193470572,-500.0,0.00041643,18]
[342885864,1732193470582,-151.0,0.00041643,14]
[342885865,1732193470591,-500.0,0.00041643,18]
[342885866,1732193470600,-500.0,0.00041643,18]
[342885867,1732193470610,-151.0,0.00041643,14]
[342885868,1732193470619,-500.0,0.00041643,18]
[342885869,1732193470631,-500.0,0.00041643,18]
[342885870,1732193470641,-500.0,0.00041643,18]
[342885871,1732193470651,-1917.64,0.00041643,18]
[342885872,1732193470661,-500.0,0.00041643,18]
[342885873,1732193470670,-151.0,0.00041643,14]
[342885874,1732193470679,-533.52,0.00041643,18]
[342885875,1732193470689,-500.0,0.00041643,18]
[342885876,1732193470699,-2686.07,0.00041643,18]
[342885877,1732193470708,-500.0,0.00041643,18]
[342885878,1732193470718,-1035.49,0.00041643,18]
[342885879,1732193470728,-1010.02,0.00041643,18]
[342885880,1732193470737,-500.0,0.00041643,18]
[342885881,1732193470746,-620.3,0.00041643,18]
[342885882,1732193470755,-707.45,0.00041643,18]
[342885883,1732193470764,-151.0,0.00041643,14]
[342885884,1732193470774,-1372.53,0.00041643,18]
[342885885,1732193470783,-151.0,0.00041643,14]
[342885886,1732193470792,-500.0,0.00041643,18]
[342885887,1732193470802,-2598.42,0.00041643,18]
[342885888,1732193470811,-500.0,0.00041643,18]
[342885889,1732193470820,-500.0,0.00041643,18]
[342885890,1732193470830,-500.0,0.00041643,18]
[342885891,1732193470839,-734.73,0.00041643,18]
[342885892,1732193470848,-151.0,0.00041643,14]
[342885893,1732193470858,-151.0,0.00041643,14]
[342885894,1732193470867,-500.0,0.00041643,18]
[342885895,1732193470881,-500.0,0.00041643,18]
[342885896,1732193470892,-736.28,0.00041643,18]
[342885897,1732193470901,-580.85,0.00041643,18]
[342885898,1732193470910,-1128.94,0.00041643,18]
[342885899,1732193470920,-500.0,0.00041643,18]
[342885900,1732193470929,-500.0,0.00041643,18]
[342885901,1732193470938,-500.0,0.00041643,18]
[342885902,1732193470948,-2507.83,0.00041643,18]
[342885903,1732193470958,-500.0,0.00041643,18]
[342885904,1732193470968,-151.0,0.00041643,14]
[342885905,1732193470977,-500.0,0.00041643,18]
[342885906,1732193470987,-939.08,0.00041643,18]
[342885907,1732193470996,-500.0,0.00041643,18]
[342885908,1732193471005,-500.0,0.00041643,18]
[342885909,1732193471014,-500.0,0.00041643,18]
[342885910,1732193471024,-561.7,0.00041643,18]
[342885911,1732193471033,-543.62,0.00041643,18]
[342885912,1732193471042,-500.0,0.00041643,18]
[342885913,1732193471055,-911.24,0.00041643,18]
[342885914,1732193471064,-500.0,0.00041643,18]
[342885915,1732193471074,-1228.07,0.00041643,18]
[342885916,1732193471083,-853.45,0.00041643,18]
[342885917,1732193471094,-500.0,0.00041643,18]
[342885918,1732193471103,-999.81,0.00041643,18]
[342885919,1732193471113,-650.91,0.00041643,18]
[342885920,1732193471122,-1093.33,0.00041643,18]
[342885921,1732193471135,-500.0,0.00041643,18]
[342885922,1732193471145,-590.22,0.00041643,18]
[342885923,1732193471154,-872.44,0.00041643,18]
[342885924,1732193471165,-1958.51,0.00041643,18]
[342885925,1732193471175,-2050.87,0.00041643,18]
[342885926,1732193471184,-433.6431599,0.00041643,18]
[342885927,1732193471193,-500.0,0.00041643,18]
[342885928,1732193471203,-2587.86,0.00041643,18]
[342885929,1732193471212,-716.66,0.00041643,18]
[342885930,1732193471221,-500.0,0.00041643,18]
[342885931,1732193471231,-500.0,0.00041643,18]
[342885932,1732193471239,-1854.83,0.00041643,18]
[342885933,1732193471250,-500.0,0.00041643,18]
[342885934,1732193471260,-1245.1,0.00041643,18]
[342885935,1732193471270,-2182.56,0.00041643,18]
[342885936,1732193471279,-500.0,0.00041643,18]
[342885937,1732193471289,-721.06,0.00041643,18]
[342885938,1732193471299,-500.0,0.00041643,18]
[342885939,1732193471308,-500.0,0.00041643,18]
[342885940,1732193471317,-681.05,0.00041643,18]
[342885941,1732193471326,-811.96,0.00041643,18]
[342885942,1732193471335,-1648.57,0.00041643,18]
[342885943,1732193471345,-2024.97,0.00041643,18]
[342885944,1732193471355,-3108.31,0.00041643,18]
[342885945,1732193471365,-869.48,0.00041643,18]
[342885946,1732193471374,-151.0,0.00041643,14]
[342885947,1732193471388,-500.0,0.00041643,18]
[342885948,1732193471402,-500.0,0.00041643,18]
[342885949,1732193471416,-500.0,0.00041643,18]
[342885950,1732193471428,-151.0,0.00041643,14]
[342885951,1732193471439,-627.77,0.00041643,18]
[342885952,1732193471453,-2127.16,0.00041643,18]
[342885953,1732193471467,-500.0,0.00041643,18]
[342885954,1732193471480,-500.0,0.00041643,18]
[342885955,1732193471495,-808.84,0.00041643,18]
[342885956,1732193471508,-2208.64,0.00041643,18]
[342885957,1732193471520,-500.0,0.00041643,18]
[342885958,1732193471531,-500.0,0.00041643,18]
[342885959,1732193471546,-912.21,0.00041643,18]
[342885960,1732193471559,-657.58,0.00041643,18]
[342885961,1732193471572,-151.0,0.00041643,14]
[342885962,1732193471585,-151.0,0.00041643,14]
[342885963,1732193471599,-151.0,0.00041643,14]
[342885964,1732193471614,-151.0,0.00041643,14]
[342885965,1732193471626,-500.0,0.00041643,18]
[342885966,1732193471648,-955.78,0.00041643,18]
[342885967,1732193471663,-546.87,0.00041643,18]
[342885968,1732193471676,-700.0,0.00041643,18]
[342885969,1732193471688,-500.0,0.00041643,18]
[342885970,1732193471701,-500.0,0.00041643,18]
[342885971,1732193471715,-500.0,0.00041643,18]
[342885972,1732193471729,-1174.63,0.00041643,18]
[342885973,1732193471740,-500.0,0.00041643,18]
[342885974,1732193471751,-2130.31,0.00041643,18]
[342885975,1732193471763,-2041.6,0.00041643,18]
[342885976,1732193471780,-151.0,0.00041643,14]
[342885977,1732193471791,-151.0,0.00041643,14]
[342885978,1732193471802,-1476.28,0.00041643,18]
[342885979,1732193471814,-848.27,0.00041643,18]
[342885980,1732193471828,-1239.59,0.00041643,18]
[342885981,1732193471843,-500.0,0.00041643,18]
[342885982,1732193471854,-500.0,0.00041643,18]
[342885983,1732193471865,-1148.7,0.00041643,18]
[342885984,1732193471877,-1092.1,0.00041643,18]
[342885985,1732193471895,-500.0,0.00041643,18]
[342885986,1732193471907,-482.18573561,0.00041643,18]
[342885987,1732193471919,-500.0,0.00041643,18]
[342885988,1732193471931,-942.8,0.00041643,18]
[342885989,1732193471943,-618.83,0.00041643,18]
[342885990,1732193471956,-1286.94,0.00041643,18]
[342885991,1732193471967,-500.0,0.00041643,18]
[342885992,1732193471980,-593.94,0.00041643,18]
[342885993,1732193471992,-500.0,0.00041643,18]
[342885994,1732193472005,-500.0,0.00041643,18]
[342885995,1732193472017,-500.0,0.00041643,18]
[342885996,1732193472029,-2641.83,0.00041643,18]
[342885997,1732193472042,-745.83,0.00041643,18]
[342885998,1732193472065,-632.51,0.00041643,18]